Cogmind - Beta 14 @@@ ROGUE MODE // 2024.08.14 @ 00:20:30 Player: Darcyisverycute Result: Destroyed by Y-54 Guardian with Flak Gun Performance ------------- Evolutions (4) 2000 Regions Visited (10) 2000 Robots Destroyed (58) 290 Value Destroyed (4011) 4011 Prototype IDs (5) 100 Alien Tech Used (0) 0 Bonus (2656) 2656 TOTAL SCORE: 11057 Bonus ------- High Alert Combat Kills 467 Follower Combat Kills 432 Entered Garrisons 600 Used RIF Installer 1500 Friendly Fire -343 Cogmind --------- Core Integrity 0/850 Matter 290/300 Energy 290/290 System Corruption 0% Temperature Cool (18) Movement Walking (195) Ox1 Location -6/Lower Caves Parts ------- > --- POWER (1) -------- Improved Deuterium Engine > --- PROPULSION (5) --- Light Treads Improved Carbon-fiber Leg Improved Titanium Leg > --- UTILITY (7) ------ Large Storage Unit Improved Signal Interpreter Authchip [R/Combat] Relay Coupler [NC] (32) Relay Coupler [Grunt] (27) Relay Coupler [Sentry] (20) Drone Bay (2/2) > --- WEAPON (2) ------- Carbide Saw Heavy Pick > --- INVENTORY (15) --- Light Angular Momentum Engine Light Fission Core Advanced Melee Analysis Suite Reaction Control System Relay Coupler [NC] (31) Relay Coupler [NC] (30) Relay Coupler [NC] (30) Relay Coupler [Swarmer] (38) Relay Coupler [Brawler] (30) Relay Coupler [Duelist] (31) Relay Coupler [Demolisher] (29) Thermic Laser Carbide Saw Heavy Pick Heavy Pick Peak State ------------ > --- POWER ------------ Light Quantum Reactor > --- PROPULSION ------- Carbon-fiber Leg Carbon-fiber Leg Improved Carbon-fiber Leg Flexi-carbon Leg Flexi-carbon Leg > --- UTILITY ---------- Large Storage Unit Reaction Control System Improved Phase Shifter Hardened Medium Armor Plating Relay Coupler [Sentry] > --- WEAPON ----------- Bore Cannon Heavy Pick > --- INVENTORY -------- Light Nuclear Core Improved Heat Sink Improved Signal Interpreter Targeting Computer Microactuators Hardened Medium Armor Plating Relay Coupler [NC] Relay Coupler [Demolisher] Relay Coupler [Hunter] Phase Cannon Gauss Rifle Remote Datajack Heavy Pick Heavy Pick Heavy Pick [Rating: 62] Favorites ----------- Power Light Nuclear Core Engine Light Angular Momentum Engine Power Core Light Nuclear Core Reactor Light Quantum Reactor Propulsion Carbon-fiber Leg Treads Light Treads Leg Carbon-fiber Leg Hover Unit Cooled Airjet Flight Unit Improved Flight Unit Utility Large Storage Unit Device Improved Heat Sink Storage Large Storage Unit Processor Improved Signal Interpreter Hackware Relay Coupler [Grunt] Protection Hardened Medium Armor Plating Weapon Heavy Pick Energy Gun Beamcaster Energy Cannon Phase Cannon Ballistic Gun Light Assault Rifle Ballistic Cannon Bore Cannon Launcher Grenade Launcher Special Weapon Remote Datajack Impact Weapon Great Maul Slashing Weapon Carbide Saw Piercing Weapon Heavy Pick Special Melee Weapon Improved Datajack Build | -11 -10 -9 -8 -8 -7 -7 -6 -6 -6 -6 ------- Run | Yrd Mat Mat Mat Gar Fac Gar Fac Gar Fac Low Slots Evolved 8 | . . 2 2 . 2 . 2 . . . Power . | . . . . . . . . . . . Propulsion 3 | . . 2 1 . . . . . . . Utility 5 | . . . 1 . 2 . 2 . . . Weapon . | . . . . . . . . . . . Parts Attached 140 | 4 2 8 12 29 9 37 1 29 7 2 Power 14 | 1 . . . 4 . 3 . 4 1 1 Engine 5 | 1 . . . 1 . . . 1 1 1 Core 8 | . . . . 3 . 2 . 3 . . Reactor 1 | . . . . . . 1 . . . . Propulsion 35 | 2 . 4 4 5 1 8 . 9 2 . Treads 2 | . . . . . . . . 2 . . Leg 24 | 2 . . . 5 1 8 . 6 2 . Wheel . | . . . . . . . . . . . Hover 2 | . . . 2 . . . . . . . Flight 7 | . . 4 2 . . . . 1 . . Utility 49 | 1 . 2 3 6 6 15 1 13 1 1 Device 17 | . . . . 2 2 9 1 1 1 1 Storage 6 | 1 . 1 . 2 . . . 2 . . Processor 2 | . . . 1 . . . . 1 . . Hackware 12 | . . . . 1 1 3 . 7 . . Protection 12 | . . 1 2 1 3 3 . 2 . . Artifact . | . . . . . . . . . . . Weapon 42 | . 2 2 5 14 2 11 . 3 3 . Energy Gun 12 | . 1 2 1 5 1 2 . . . . Energy Cannon 1 | . . . . . . . . 1 . . Ballistic Gun 3 | . 1 . 1 . . 1 . . . . Ballistic Cannon 2 | . . . . . . 2 . . . . Launcher 4 | . . . 1 3 . . . . . . Special Weapon 2 | . . . . . . 2 . . . . Impact Weapon 5 | . . . 1 4 . . . . . . Slashing Weapon 6 | . . . 1 2 . . . 1 2 . Piercing Weapon 4 | . . . . . . 2 . 1 1 . Special Melee Weapon 3 | . . . . . 1 2 . . . . Unidentified Prototypes 3 | . . 1 1 . . 1 . . . . Parts Lost 47 | . . 1 2 9 3 9 . 23 . . Power 6 | . . . 1 2 . 1 . 2 . . Propulsion 22 | . . . . 4 1 7 . 10 . . Utility 11 | . . . . . 2 1 . 8 . . Weapon 8 | . . 1 1 3 . . . 3 . . Highest Loss Streak 11 | . . 1 1 4 3 3 . 11 . . To Critical Strikes 1 | . . . . 1 . . . . . . Average Slot Usage (%) 82 | . 70 76 94 84 95 95 80 70 59 85 Engine 3 | . 14 11 7 2 7 . . . 1 5 Core 2 | . . . . 4 . 3 6 3 . . Leg 22 | . 28 13 . 13 37 35 26 21 6 13 Flight 5 | . . 17 39 18 . . . . . . Device 7 | . . . . 5 18 10 6 5 . 5 Storage 7 | . 14 11 9 8 7 7 6 5 6 6 Processor 3 | . . . 8 6 . . . 3 6 6 Hackware 9 | . . . . 5 2 9 13 10 26 26 Protection 4 | . . 2 9 . 6 8 6 5 . . Energy Gun 3 | . 7 13 5 5 13 1 . . . . Special Weapon 1 | . . . . . . 1 6 3 . . Impact Weapon 1 | . . . 4 4 . . . . . . Slashing Weapon 1 | . . . 2 2 . . . . 2 6 Piercing Weapon 3 | . . . . . . 8 6 5 . 6 Peak Build Rating 62 | 4 6 19 33 42 51 62 49 56 41 49 Average Rating 37 | 3 4 10 25 30 48 50 45 37 29 47 On Entrance 27 | . 4 6 19 33 42 43 44 49 22 41 Naked Turns . | . . . . . . . . . . . Heaviest Build 59 | 8 11 17 17 41 50 59 43 45 29 42 Greatest Support 88 | 20 20 20 23 75 78 88 50 80 38 38 Greatest Overweight (x) 2 | 1 . 1 2 1 . 1 . 2 1 1 Average Overweight (x) . | . . . . . . . . . . . Largest Inventory Capacity 15 | 8 8 15 8 15 15 15 15 15 15 15 Average Capacity 13 | 7 8 8 8 9 15 15 15 13 15 15 Most Carried 15 | 5 8 8 8 15 15 15 15 15 15 15 Average Carried 12 | 2 6 6 6 9 14 14 15 12 14 14 Final Capacity 15 | 8 8 8 8 15 15 15 15 15 15 15 Final Carried 15 | 5 6 6 8 15 15 15 15 14 14 15 Class Distribution -------------------- 39% | Mutant 27% | Bothacker-Mutant 20% | Scavenger-Mutant 8% | Bothacker-Gladiator 3% | Sprinter Dominant Class ---------------- Mutant | -10/Materials Mutant | -9/Materials Sprinter | -8/Materials Mutant | -8/Garrison Scavenger-Mutant | -7/Factory Bothacker-Mutant | -7/Garrison Bothacker-Mutant | -6/Factory Bothacker-Mutant | -6/Garrison Mutant | -6/Factory Mutant | -6/Lower Caves Resources | -11 -10 -9 -8 -8 -7 -7 -6 -6 -6 -6 ----------- Run | Yrd Mat Mat Mat Gar Fac Gar Fac Gar Fac Low Matter Collected 1934 | 149 14 130 202 424 60 519 . 356 20 60 Remotely . | . . . . . . . . . . . Salvage Created 3384 | . 14 190 52 614 134 1540 . 820 20 . Parts 154 | . 3 13 5 32 12 47 . 41 1 . Haulers Intercepted 3 | . . 2 1 . . . . . . . Recyclers Shooed . | . . . . . . . . . . . Parts Field Recycled . | . . . . . . . . . . . Retrieved Matter . | . . . . . . . . . . . Parts Self-Destructed . | . . . . . . . . . . . Prevented . | . . . . . . . . . . . Kills | -11 -10 -9 -8 -8 -7 -7 -6 -6 -6 -6 ------- Run | Yrd Mat Mat Mat Gar Fac Gar Fac Gar Fac Low Combat Hostiles Destroyed 49 | . . 1 2 21 1 14 . 10 . . Melee 26 | . . . . 7 . 12 . 7 . . Guns 8 | . . 1 . 5 1 1 . . . . Cannons 3 | . . . . . . 1 . 2 . . AOE 10 | . . . 2 8 . . . . . . Classes Destroyed 10 | . 1 2 1 4 1 1 . . . . Hauler 3 | . . 2 1 . . . . . . . Operator 1 | . . . . . 1 . . . . . Watcher 3 | . 1 1 . . 1 . . . . . Swarmer 7 | . . . . 4 1 . . 2 . . Cutter 2 | . . . 2 . . . . . . . Grunt 16 | . . . . 3 . 10 . 3 . . Duelist 1 | . . . . . . 1 . . . . Sentry 9 | . . 1 . 3 . 3 . 2 . . Hunter 8 | . . . . 5 . . . 3 . . Programmer 5 | . . . . 3 1 1 . . . . Thug 2 | . . . . 2 . . . . . . Guerrilla 1 | . . . . 1 . . . . . . Best Kill Streak 6 | . 1 3 2 6 1 4 . 3 . . Combat Bots Only 6 | . . 1 2 6 1 4 . 3 . . Max Kills in Single Turn 2 | . 1 1 1 2 1 1 . 1 . . Gunslinging 1 | . . . . 1 . . . . . . Exploded 2 | . . . 1 2 . . . . . . Melee 1 | . . . . 1 . 1 . 1 . . Uniques/NPCs Destroyed . | . . . . . . . . . . . Combat | -11 -10 -9 -8 -8 -7 -7 -6 -6 -6 -6 -------- Run | Yrd Mat Mat Mat Gar Fac Gar Fac Gar Fac Low Hostile Shots Fired 807 | . 3 24 51 116 94 141 . 297 43 38 Missed 306 | . . 11 34 43 44 50 . 87 24 13 Damage Taken 6342 | . 35 198 342 1055 619 1339 . 2405 161 188 Core 1412 | . . 94 23 237 56 149 . 769 49 35 Absorbed by Shields . | . . . . . . . . . . . Redirected to Shielding 31 | . . . . . . 3 . 28 . . Core Remaining (%) 79 | 100 100 76 . 52 . 70 . . . . Volleys Fired 124 | . 1 8 17 22 15 34 . 27 . . Largest 2 | . 2 2 2 2 2 2 . 1 . . Hottest 150 | . 60 101 86 150 150 150 . 85 . . Shots Fired 192 | . 2 16 25 36 28 58 . 27 . . Gun 133 | . 2 16 22 19 28 46 . . . . Cannon 20 | . . . . . . 7 . 13 . . Launcher 20 | . . . 3 17 . . . . . . Special 19 | . . . . . . 5 . 14 . . Kinetic 38 | . 1 7 12 . . 18 . . . . Thermal 91 | . . 1 4 10 28 35 . 13 . . Explosive 20 | . . . 3 17 . . . . . . Electromagnetic 24 | . 1 8 6 9 . . . . . . Robot Hit Streak 19 | . 1 3 6 6 6 19 . 7 . . Robot Miss Streak 4 | . . 4 3 2 3 2 . 3 . . Penetration Max . | . . . . . . . . . . . Secondary Targets 2 | . . . . 1 1 . . . . . Max Gunslinging Chain 1 | . . . . 1 1 . . . . . Shots Hit Robots 238 | . 1 8 13 33 21 105 . 55 2 . Core Hits 127 | . 1 7 5 44 7 43 . 18 2 . Critical Kills 4 | . . . . 3 . 1 . . . . Critical Parts Destroyed 3 | . . . . 1 . 2 . . . . Critical Strikes 20 | . . . . 7 . 10 . 3 . . Burn 3 | . . . . 1 . 2 . . . . Destroy 3 | . . . . . . 3 . . . . Smash 4 | . . . . 4 . . . . . . Sever 2 | . . . . 2 . . . . . . Impale 8 | . . . . . . 5 . 3 . . Melee Attacks 258 | . . . 3 92 10 85 . 63 5 . Impact 70 | . . . 2 68 . . . . . . Slashing 31 | . . . 1 24 . . . 3 3 . Piercing 145 | . . . . . . 83 . 60 2 . Sneak Attacks 16 | . . . 1 5 . 2 . 8 . . Combat Hostiles 9 | . . . . 1 . 1 . 7 . . Follow-up Attacks 13 | . . . . 1 . 11 . 1 . . Damage Inflicted 8128 | . 20 99 325 1904 383 3629 . 1703 65 . Guns 1630 | . 20 99 121 226 383 781 . . . . Cannons 182 | . . . . . . 58 . 124 . . Explosions 1124 | . . . 140 984 . . . . . . Melee 5192 | . . . 64 694 . 2790 . 1579 65 . Ramming . | . . . . . . . . . . . Kinetic 277 | . . 31 33 . . 213 . . . . Thermal 1298 | . . 15 . 150 383 626 . 124 . . Explosive 1124 | . . . 140 984 . . . . . . Electromagnetic 237 | . 20 53 88 76 . . . . . . Impact 342 | . . . . 342 . . . . . . Slashing 504 | . . . 64 352 . . . 23 65 . Piercing 4346 | . . . . . . 2790 . 1556 . . Highest Corruption 4 | . . . . 2 2 4 . . . . Average Corruption 2 | . . . . 1 1 3 . . . . Corruption Purged . | . . . . . . . . . . . Corruption Blocked . | . . . . . . . . . . . Effects 41 | . . . . 12 1 28 . . . . Message Errors 8 | . . . . 3 . 5 . . . . Matter Fused 14 | . . . . 1 1 12 . . . . Heat Flow Errors 3 | . . . . 2 . 1 . . . . Energy Discharges 5 | . . . . 1 . 4 . . . . Data Loss (minor) 8 | . . . . 4 . 4 . . . . Data Loss (major) 1 | . . . . 1 . . . . . . Weapon Failures 2 | . . . . . . 2 . . . . Overload Shots . | . . . . . . . . . . . Overflow Damage 225 | . . . 10 64 . 107 . 44 . . Projectiles . | . . . . . . . . . . . Explosions 17 | . . . 10 7 . . . . . . Melee 208 | . . . . 57 . 107 . 44 . . Knockbacks 1 | . . . . 1 . . . . . . Impact 1 | . . . . 1 . . . . . . Kinetic . | . . . . . . . . . . . Secondary . | . . . . . . . . . . . Self-Inflicted Damage 144 | . . . 80 64 . . . . . . Shots 6 | . . . 2 4 . . . . . . Rammed . | . . . . . . . . . . . Targets Rammed . | . . . . . . . . . . . Kicked . | . . . . . . . . . . . Crushed . | . . . . . . . . . . . Highest Temperature 465 | . 20 51 86 251 152 465 . 372 . . Average Temperature 96 | . 15 18 23 112 55 144 . 124 . . Received Heat Transfer 1598 | . 21 63 9 162 24 495 . 716 57 51 Effects 2 | . . . . . . 2 . . . . Short Circuit 1 | . . . . . . 1 . . . . Damage (minor) 1 | . . . . . . 1 . . . . Siege Activations . | . . . . . . . . . . . Robots Corrupted 1 | . . . . 1 . . . . . . Combat Hostiles 1 | . . . . 1 . . . . . . Parts Fried . | . . . . . . . . . . . Impact Corruptions 3 | . . . . 3 . . . . . . Robots Melted . | . . . . . . . . . . . Combat Hostiles . | . . . . . . . . . . . Parts Melted 8 | . . . . . 3 . . 5 . . Heat Transferred 2272 | . . 37 . 333 629 1125 . 148 . . Parts Sabotaged . | . . . . . . . . . . . Parts Stolen . | . . . . . . . . . . . Parts Stripped . | . . . . . . . . . . . Power Chain Reactions . | . . . . . . . . . . . Alert | -11 -10 -9 -8 -8 -7 -7 -6 -6 -6 -6 ------- Run | Yrd Mat Mat Mat Gar Fac Gar Fac Gar Fac Low Peak Influence 924 | . 7 132 170 811 446 924 479 882 482 . Initial 479 | . . 2 55 33 425 222 479 335 462 . Average 472 | . 3 27 94 464 378 530 479 679 441 . Maximum Alert Level 3 | . . . . 3 2 3 2 3 2 . Low Security (%) 13 | 100 100 100 100 16 . . . . . . Level 1 22 | . . . . 31 39 31 . 11 13 . Level 2 35 | . . . . 26 60 37 100 22 86 . Level 3 28 | . . . . 26 . 31 . 66 . . Level 4 . | . . . . . . . . . . . Level 5 . | . . . . . . . . . . . High Security . | . . . . . . . . . . . Max Security . | . . . . . . . . . . . Squads Dispatched 9 | . 1 . 5 . 2 . . . 1 . Investigation 1 | . . . 1 . . . . . . . Extermination 1 | . . . . . 1 . . . . . Reinforcement 6 | . 1 . 3 . 1 . . . 1 . Assault . | . . . . . . . . . . . Garrison 1 | . . . 1 . . . . . . . Intercept . | . . . . . . . . . . . Searches Triggered . | . . . . . . . . . . . Construction Impeded . | . . . . . . . . . . . Haulers Reinforced . | . . . . . . . . . . . Active Scanning Responses . | . . . . . . . . . . . Cargo Convoy Interrupts . | . . . . . . . . . . . Stealth | -11 -10 -9 -8 -8 -7 -7 -6 -6 -6 -6 --------- Run | Yrd Mat Mat Mat Gar Fac Gar Fac Gar Fac Low Distress Signals 4 | . . . 2 . 2 . . . . . Communications Jammed . | . . . . . . . . . . . Distress Signals . | . . . . . . . . . . . Times Spotted 126 | . 3 14 11 22 12 29 . 23 6 6 Peak Tracking Total 11 | . 2 11 5 5 4 7 . 4 4 5 Tactical Retreats 16 | . . 1 1 2 2 7 . 2 . 1 Traps | -11 -10 -9 -8 -8 -7 -7 -6 -6 -6 -6 ------- Run | Yrd Mat Mat Mat Gar Fac Gar Fac Gar Fac Low Traps Triggered 7 | . . . . 2 3 . . 2 . . Indirectly . | . . . . . . . . . . . Trap Hack Attempts . | . . . . . . . . . . . Triggered . | . . . . . . . . . . . Disarmed . | . . . . . . . . . . . Reprogrammed . | . . . . . . . . . . . Reused . | . . . . . . . . . . . Traps Extracted . | . . . . . . . . . . . Installed . | . . . . . . . . . . . Triggered . | . . . . . . . . . . . Machines | -11 -10 -9 -8 -8 -7 -7 -6 -6 -6 -6 ---------- Run | Yrd Mat Mat Mat Gar Fac Gar Fac Gar Fac Low Machines Disabled 13 | . . 1 1 4 2 3 . 2 . . Max in Single Turn 1 | . . 1 1 1 1 1 . 1 . . Garrison Relay 9 | . . . . 3 . 3 . 3 . . Phase Generator 1 | . . . . 1 . . . . . . Machines Repaired . | . . . . . . . . . . . Machines Dismantled . | . . . . . . . . . . . Machines Sabotaged . | . . . . . . . . . . . Overloaded Fab Kills . | . . . . . . . . . . . Hacking | -11 -10 -9 -8 -8 -7 -7 -6 -6 -6 -6 --------- Run | Yrd Mat Mat Mat Gar Fac Gar Fac Gar Fac Low Machines Accessed 22 | . 1 3 4 4 4 2 1 2 1 . Terminals 18 | . 1 3 2 4 3 2 . 2 1 . Fabricators . | . . . . . . . . . . . Repair Stations . | . . . . . . . . . . . Recycling Units . | . . . . . . . . . . . Scanalyzers 1 | . . . 1 . . . . . . . Garrison Access 3 | . . . 1 . 1 . 1 . . . Total Hacks 44 | . 3 10 7 6 6 5 1 5 1 . Successful 20 | . 1 4 4 4 3 1 1 2 . . Failed 24 | . 2 6 3 2 3 4 . 3 1 . Catastrophic 4 | . . . 1 . 1 2 . . . . Database Lockouts . | . . . . . . . . . . . Manual 12 | . 1 6 1 . 3 . . . 1 . Terminals 38 | . 3 10 3 6 5 5 . 5 1 . Fabricators . | . . . . . . . . . . . Repair Stations . | . . . . . . . . . . . Recycling Units . | . . . . . . . . . . . Scanalyzers 2 | . . . 2 . . . . . . . Garrison Access 4 | . . . 2 . 1 . 1 . . . Terminal Hacks 14 | . . 4 1 4 2 1 . 2 . . Robot Analysis 1 | . . 1 . . . . . . . . Prototype ID Bank 1 | . . 1 . . . . . . . . Open Door 3 | . . . . 1 . 1 . 1 . . Open DSF 2 | . . . . . 2 . . . . . Emergency Access Points 3 | . . 1 . 1 . . . 1 . . Unreport Threat 2 | . . 1 1 . . . . . . . Garrison Registry 1 | . . . . 1 . . . . . . Security Stations 1 | . . . . 1 . . . . . . Fabricator Hacks . | . . . . . . . . . . . Repair Station Hacks . | . . . . . . . . . . . Recycling Unit Hacks . | . . . . . . . . . . . Scanalyzer 2 | . . . 2 . . . . . . . Insert Component 1 | . . . 1 . . . . . . . Analyze 1 | . . . 1 . . . . . . . Garrison Access Hacks 3 | . . . 1 . 1 . 1 . . . Unlock Access 3 | . . . 1 . 1 . 1 . . . Unauthorized Hacks 1 | . 1 . . . . . . . . . Terminals 1 | . 1 . . . . . . . . . Botnet 1 | . 1 . . . . . . . . . Fabricators . | . . . . . . . . . . . Repair Stations . | . . . . . . . . . . . Recycling Units . | . . . . . . . . . . . Scanalyzers . | . . . . . . . . . . . Garrison Access . | . . . . . . . . . . . Data Cores Recovered . | . . . . . . . . . . . Used . | . . . . . . . . . . . Hacking Detections 15 | . 1 3 4 1 2 1 1 1 1 . Full Trace Events 1 | . 1 . . . . . . . . . Feedback Events . | . . . . . . . . . . . Feedback Blocked . | . . . . . . . . . . . Robot Schematics Acquired . | . . . . . . . . . . . Robots Built . | . . . . . . . . . . . Authchips . | . . . . . . . . . . . Time . | . . . . . . . . . . . Total Robot Build Rating . | . . . . . . . . . . . Part Schematics Acquired 1 | . . . 1 . . . . . . . Parts Built . | . . . . . . . . . . . Authchips . | . . . . . . . . . . . Time . | . . . . . . . . . . . Total Part Build Rating . | . . . . . . . . . . . Parts Repaired . | . . . . . . . . . . . Time . | . . . . . . . . . . . Parts Recycled . | . . . . . . . . . . . Recycled Matter . | . . . . . . . . . . . Retrieved Matter . | . . . . . . . . . . . Retrieved Components . | . . . . . . . . . . . Parts Scanalyzed 1 | . . . 1 . . . . . . . Part Schematics Acquired 1 | . . . 1 . . . . . . . Parts Damaged . | . . . . . . . . . . . Bothacking | -11 -10 -9 -8 -8 -7 -7 -6 -6 -6 -6 ------------ Run | Yrd Mat Mat Mat Gar Fac Gar Fac Gar Fac Low Used RIF Installer 3 | . . . . 1 . 1 . 1 . . Watcher Feeds 1 | . . . . . . 1 . . . . Patrol Navigation 1 | . . . . . . . . 1 . . Robots Hacked 19 | . . . . . 3 7 . 9 . . Non-combat . | . . . . . . . . . . . Combat 19 | . . . . . 3 7 . 9 . . Robot Hacks Applied 21 | . . . . . 4 7 . 10 . . find_shortcuts 1 | . . . . . . . . 1 . . find_garrison 1 | . . . . . 1 . . . . . spike_heat 1 | . . . . . . . . 1 . . disable_weapons 1 | . . . . . . 1 . . . . reboot_system 2 | . . . . . . . . 2 . . overwrite_iff 5 | . . . . . . 3 . 2 . . streamctrl_high 3 | . . . . . 1 . . 2 . . formatsys_high 7 | . . . . . 2 3 . 2 . . Relay Couplers Released 41 | . . . . 13 . 13 . 15 . . Machine Destruction 41 | . . . . 13 . 13 . 15 . . Attached 10 | . . . . . 1 3 . 6 . . Fabnet Peak Effective % . | . . . . . . . . . . . Robots Rewired . | . . . . . . . . . . . Allies Hacked 1 | . . . . . . 1 . . . . Hacks Repelled . | . . . . . . . . . . . Allies | -11 -10 -9 -8 -8 -7 -7 -6 -6 -6 -6 -------- Run | Yrd Mat Mat Mat Gar Fac Gar Fac Gar Fac Low Total Allies 19 | . . . . . 3 8 . 8 . . Largest Group 3 | . . . . . 3 3 1 2 . . Highest-Rated Group 97 | . . . . . 36 96 21 97 . . Highest-Rated Ally 51 | . . . . . 12 39 21 51 . . Total Orders 3 | . . . . . 1 . . . . 2 FOLLOW 1 | . . . . . 1 . . . . . EXPLORE 2 | . . . . . . . . . . 2 Ally Attacks 74 | . . . . . 7 18 . 49 . . Total Damage 1741 | . . . . . 61 476 . 1204 . . Kills 13 | . . . . . . 2 . 11 . . Allies Corrupted . | . . . . . . . . . . . Allies Melted . | . . . . . . . . . . . Intel | -11 -10 -9 -8 -8 -7 -7 -6 -6 -6 -6 ------- Run | Yrd Mat Mat Mat Gar Fac Gar Fac Gar Fac Low Robot Analysis Total 1 | . . 1 . . . . . . . . Derelict Logs Recovered . | . . . . . . . . . . . Drone Launches 4 | . . . . . . . . . . 4 Drone Recoveries 4 | . . . . . . . . . . 4 Exploration | -11 -10 -9 -8 -8 -7 -7 -6 -6 -6 -6 ------------- Run | Yrd Mat Mat Mat Gar Fac Gar Fac Gar Fac Low Turns Passed 5550 | 57 173 167 163 1058 662 1281 27 1221 461 280 Spaces Moved 4091 | 44 134 213 242 1034 482 738 22 758 270 154 Core 112 | 10 . . . . . . . 102 . . Treads 266 | . . . . . . . . 82 184 . Legs 2514 | 34 134 65 . 249 482 738 22 550 86 154 Wheels . | . . . . . . . . . . . Hover 4 | . . . 4 . . . . . . . Flight 1195 | . . 148 238 785 . . . 24 . . Fastest Speed 27 | 50 120 31 27 34 120 120 120 45 125 125 Average Speed 99 | 106 120 58 30 56 120 120 120 114 160 178 Slowest Speed 260 | 120 120 127 170 120 120 190 120 260 240 195 Overloaded Moves . | . . . . . . . . . . . Propulsion Burnouts . | . . . . . . . . . . . Robots Hopped 6 | . . 1 4 1 . . . . . . Cave-ins Triggered . | . . . . . . . . . . . Exploration Rate (%) 36 | 4 35 29 25 94 17 68 1 75 11 43 Regions Visited 10 Branch Regions 1 Pre-discovered Areas . | . . . . . . . . . . . Known Exits Taken 4 | . . . 1 . 1 . 1 . 1 . Unknown Exits Taken 3 | 1 1 1 . . . . . . . . Scrap Searched 2 | . . . . . . . . . . 2 Spaces Dug 39 | . . . 2 34 . 1 . 1 1 . Terrain Destroyed 144 | . . . 23 118 . 1 . 1 1 . Melee 39 | . . . 2 34 . 1 . 1 1 . Projectile . | . . . . . . . . . . . AOE 105 | . . . 21 84 . . . . . . Terrain Rammed . | . . . . . . . . . . . Walls Destroyed . | . . . . . . . . . . . Machines Disabled . | . . . . . . . . . . . Actions | -11 -10 -9 -8 -8 -7 -7 -6 -6 -6 -6 --------- Run | Yrd Mat Mat Mat Gar Fac Gar Fac Gar Fac Low Total 4961 | 52 145 238 299 1305 536 945 22 973 288 158 Wait 176 | . 2 6 12 65 8 36 . 46 1 . Move 4066 | 43 133 210 233 1030 481 736 21 756 269 154 Hop 6 | . . 1 4 1 . . . . . . Pick Up 88 | 5 5 1 8 18 5 10 . 32 3 1 Fast Attach 63 | 4 . 5 6 9 4 15 1 13 4 2 Attach 44 | . 2 3 2 11 1 6 . 16 3 . Detach 23 | . . 2 1 10 . 6 . 3 1 . Swap 33 | . . . 4 9 4 16 . . . . Drop 52 | . 2 2 9 6 6 13 . 11 2 1 Fire 124 | . 1 8 17 22 15 34 . 27 . . Melee 238 | . . . 3 88 10 72 . 60 5 . Ram . | . . . . . . . . . . . Kick . | . . . . . . . . . . . Crush . | . . . . . . . . . . . Escape Stasis 46 | . . . . 36 2 . . 8 . . Rewire 2 | . . . . . . 1 . 1 . . Trap . | . . . . . . . . . . . Miscellaneous . | . . . . . . . . . . . Route ------- -11/Scrapyard -10/Materials -9/Materials -8/Materials -8/Garrison (discovered 3 exits: *Fac x3) -7/Factory -7/Garrison (discovered 3 exits: *Fac x3) -6/Factory -6/Garrison (discovered 2 exits: *Fac x2) -6/Factory -6/Lower Caves History --------- Turn | Location | Event 2 | -11/Scrapyard | Met Revision 17 13 | -11/Scrapyard | Discovered new exit (range 16) 58 | -11/Scrapyard | Entered Materials 228 | -10/Materials | Discovered new exit (range 3) 231 | -10/Materials | Entered another Materials area 231 | -9/Materials | Evolved 2 slots: Propulsion x2 314 | -9/Materials | Build established: Mutant 394 | -9/Materials | Discovered new exit (range 16) 398 | -9/Materials | Entered another Materials area 398 | -8/Materials | Evolved 2 slots: Propulsion x1, Utility x1 501 | -8/Materials | Garrison activated, responded to threat 518 | -8/Materials | Met 7R-MNS 522 | -8/Materials | Identified exit to Garrison 561 | -8/Materials | Entered Garrison 690 | -8/Garrison | Triggered checkpoint 773 | -8/Garrison | Triggered checkpoint 777 | -8/Garrison | Garrison Relay disabled 785 | -8/Garrison | Discovered new exit (range 16) 968 | -8/Garrison | Lost 3 parts (1p1n1w) 1005 | -8/Garrison | Triggered checkpoint 1057 | -8/Garrison | Discovered new exit (range 5) 1063 | -8/Garrison | Garrison Relay disabled 1092 | -8/Garrison | Discovered new exit (range 44) 1092 | -8/Garrison | Discovered new exit (range 12) 1092 | -8/Garrison | Discovered new exit (range 43) 1143 | -8/Garrison | Triggered checkpoint 1151 | -8/Garrison | Installed Relay Interface Framework 1165 | -8/Garrison | Triggered checkpoint 1189 | -8/Garrison | Phase Generator disabled 1193 | -8/Garrison | Garrison Relay disabled 1213 | -8/Garrison | Triggered checkpoint 1299 | -8/Garrison | Lost 4 parts (1p2n1w) 1428 | -8/Garrison | Learned Factory security intel 1598 | -8/Garrison | Build established: Scavenger-Mutant 1619 | -8/Garrison | Entered Factory 1619 | -7/Factory | Evolved 2 slots: Utility x2 1756 | -7/Factory | Identified exit to DSF 1837 | -7/Factory | Identified exit to DSF 2243 | -7/Factory | Lost 3 parts (1n2u) 2279 | -7/Factory | Identified exit to Garrison 2281 | -7/Factory | Entered Garrison 2595 | -7/Garrison | Triggered checkpoint 2651 | -7/Garrison | Triggered checkpoint 2675 | -7/Garrison | Garrison Relay disabled 2775 | -7/Garrison | Discovered new exit (range 8) 2801 | -7/Garrison | Triggered checkpoint 2864 | -7/Garrison | Lost 3 parts (1p2n) 2880 | -7/Garrison | Build established: Bothacker-Mutant 2880 | -7/Garrison | Garrison Relay disabled 2912 | -7/Garrison | Rescued a captive Derelict 2914 | -7/Garrison | Rescued a captive Derelict 2989 | -7/Garrison | Triggered checkpoint 3094 | -7/Garrison | Lost 3 parts (2n1u) 3247 | -7/Garrison | Discovered new exit (range 15) 3322 | -7/Garrison | Build established: Bothacker-Gladiator 3389 | -7/Garrison | Triggered checkpoint 3402 | -7/Garrison | Garrison Relay disabled 3495 | -7/Garrison | Triggered checkpoint 3536 | -7/Garrison | Expanded RIF knowledge: Watcher Feeds 3544 | -7/Garrison | Discovered new exit (range 12) 3562 | -7/Garrison | Entered Factory 3562 | -6/Factory | Accompanied by 1 ally 3562 | -6/Factory | Evolved 2 slots: Utility x2 3588 | -6/Factory | Identified exit to Garrison 3589 | -6/Factory | Entered Garrison 3589 | -6/Garrison | Accompanied by 1 ally 3607 | -6/Garrison | Triggered checkpoint 3633 | -6/Garrison | Garrison Relay disabled 3747 | -6/Garrison | Triggered checkpoint 3794 | -6/Garrison | Build established: Bothacker-Mutant 3841 | -6/Garrison | Triggered checkpoint 3896 | -6/Garrison | Garrison Relay disabled 3977 | -6/Garrison | Rescued a captive Derelict 3978 | -6/Garrison | Rescued a captive Derelict 4019 | -6/Garrison | Discovered new exit (range 7) 4040 | -6/Garrison | Spotted B-86 Titan 4083 | -6/Garrison | Triggered checkpoint 4127 | -6/Garrison | Triggered checkpoint 4127 | -6/Garrison | Garrison Relay disabled 4299 | -6/Garrison | Triggered checkpoint 4300 | -6/Garrison | Discovered new exit (range 10) 4337 | -6/Garrison | Identified exit to Factory 4407 | -6/Garrison | Lost 11 parts (5n4u2w) 4569 | -6/Garrison | Triggered checkpoint 4600 | -6/Garrison | Core integrity fell below 50% 4606 | -6/Garrison | Core integrity fell below 20% 4625 | -6/Garrison | Lost 7 parts (1p4n1u1w) 4642 | -6/Garrison | Expanded RIF knowledge: Patrol Navigation 4810 | -6/Garrison | Entered Factory 4873 | -6/Factory | Build established: Mutant 5243 | -6/Factory | Discovered new exit (range 3) 5245 | -6/Factory | Identified exit to Lower Caves 5271 | -6/Factory | Entered Lower Caves 5438 | -6/Lower Caves | Attracted the attention of an 0b10 checkpoint 5551 | -6/Lower Caves | Destroyed by Y-54 Guardian with Flak Gun Last Messages --------------- 05300_ Found Drone Bay. 05300_ Found Imp. Deuterium Engine. 05300_ Found 68 Matter. 05301_ Acquired 46 matter. 05303_ Acquired Drone Bay. 05305_ Drone released from Drone Bay. 05308_ Searching scrap... 05308_ Found Core Analyzer. 05308_ Found Thermic Laser. 05308_ Found Matter Compressor. 05308_ Found 35 Matter. 05309_ Acquired 10 matter. 05313_ Acquired Thermic Laser. 05319_ Dropped Lgt. Ion Engine. 05320_ Acquired Imp. Deuterium Engine. 05323_ NP-6JH(k) breaks down the debris. 05366_ Drone retrieved by Drone Bay. 05438_ Y-54 Guardian: "INTERCEPTING UNREGISTERED DERELICT." 05455_ Drone released from Drone Bay. 05488_ Drone retrieved by Drone Bay. Map ----- +----------------------------------------------------+ | ?????????????????????????????????????????????????? | | ?????????????????????????????????????????????????? | | ?????????????????????????????????????????????????? | | ?????????????????????????????????????????????????? | | ?????????????????????????????????????????????????? | | ?????????????????????????????????????????????????? | | ?????????????????????????????????????????????????? | | ?????????????????????????????????????????????????? | | ?????????????????????????????????????????????????? | | ?????????????????????????????????????????????????? | | ?????????????????????????????????????????????????? | | ?????????????????????????????????????????????????? | | ???????????????????####??????????????????????????? | | ???????????????????# ######?????????# ?????????? | | ???????????????????# ??????? ?????????? | | ????????????????????# ?????? #????????? | | ?????????????????????# ????# #????????? | | ??????????????????????# #### #???????? | | ?????????????????????## ???????? | | ????????????????????## ???????? | | ????????????????????# l#### ???????? | | ?????????? #######??# #?????????????????????? | | ????????? ## ##?###?????????????????? | | ????????????# % ### ##????????????????? | | ????????????# Y## #????????????????? | | ????????????### @ #????????????????? | | ??????????????# #????????????????? | | ??????????????# ####?????????????? | | ???????#####??## #####?????????? | | ??????## #### #????##### | | ?????## ### ### #????# | | ?????# ## ### ##??? #????# # | | ??????# ### #?# #??????? ?????# ## | | ??????## ## ## ?## #?????????????# #? | | ???????##??## ### #?# #?????????????# #? | | ???????????# #?## ??# ##?????????????# ## | | ?????##????# ##??## #??# ##?????????????# | | ????## #??## #????###???# #?????????##### | | ????# ### #??????###?## #######??## ## | | ????# ##????### #### #??# | | ????# #?????# ## #?## ## | | ????## ### #??????# ### # ### ##? | | ?????## #?# #????### ##?# #?? | | ??????## ?# ###### ## ##??# ! #?? | | ???????# ?# # ########???### %## ### | | ???????# # ##?????####### ####### | | ???????# ####### ###???# | | ???????# ## #???# | | ???????# #### #??#### | | ???????# # ## #??## #????? | +----------------------------------------------------+ Best States ------------- Heat Dissipation 62 Energy Generation 25 Energy Capacity 290 Matter Stores 300 Matter Capacity 300 Sight Range 18 Terrain Scan Density 10 Armor Coverage 450 Resistance: EM 25 Core Shielding 20 Weapon Cycling 15 Melee Speed Boost 20 Phase Shifting 10 Evasion (%) 73 Recoil Reduction 1 Defensive Hacking 10 Relay Coupler Types 3 Relay Coupler Value 79 Authchip Count 1 Item Schematics ----------------- Lrg. Storage Unit | -8/Materials | Scanalyzed Robot Schematics ------------------ None Fabricated ------------ Nothing Alien Tech Used ----------------- None Achievements -------------- Assimilation Complete Deadly Force Challenges ------------ None Game ------ Seed ThiefAlphaThermoblaster Manual? 0 Play Time 01:42:03 Cumulative 68.1 hours Start 2024.08.13 @ 22:30:09 End 2024.08.14 @ 00:20:30 Sessions 1 Manual Loads 0 Difficulty Rogue Special Mode None Game No. 36 Rogue 28 Adventurer 8 Explorer 0 Win Type - Total 1 Types 1/0/0/0/0/0/0/0/0 Lore% 25 Gallery% 45 Achievement% 42 Wizard Run 0 Options --------- Layout 0 ASCII 0 Keyboard 1 Movement Numpad Keybinds 1 Fullscreen 1 Font 18/SmallcapsGlow Map View 76x50 Zoom Use 0% Tactical HUD 1 Map Filters NONE Filters NONE Steam 1 RUN: d29b74a2-7ce4-45fe-8b9e-7bc8b133f43b